[Event "ONJK-FGH 2019"]
[Site "Borne"]
[Date "2019.08.06"]
[Round "5.3"]
[White "Terlouw, Wouter"]
[Black "Geldof, Max"]
[Result "1-0"]
[ECO "D06"]
[WhiteElo "1159"]
[BlackElo "749"]
[Annotator "NA"]
[PlyCount "103"]
[EventDate "2019.08.05"]
[EventType "swiss"]
[EventCountry "NED"]
[SourceTitle "playchess.com"]
[Source "ChessBase"]
[SourceQuality "1"]
[TimeControl "1500+10"]

1. d4 {[%emt 0:00:00]} d5 {[%emt 0:00:00]} 2. c4 {[%emt 0:00:00]} e6 {[%emt 0:00:00]} 3. Nc3 {[%emt 0:00:00]} Nf6 {[%emt 0:00:00]} 4. cxd5 {[%emt 0:00:00]} exd5 {[%emt 0:00:00]} 5. Nf3 {[%emt 0:00:00]} Nc6 {[%emt 0:00:01]} 6. Bf4 {[%emt 0:00:01]} Bf5 {[%emt 0:00:03]} 7. e3 {[%emt 0:00:02]} Bb4 {[%emt 0:00:06]} 8. a3 {[%emt 0:00:09]} Ba5 {[%emt 0:00:02]} 9. b4 {[%emt 0:00:02]} Bb6 {[%emt 0:00:01]} 10. Bb5 {[%emt 0:00:01]} a5 {[%emt 0:00:22]} 11. Ne5 {[%emt 0:00:18]} Bd7 {[%emt 0:00:29]} 12. Nxd7 {[%emt 0:00:22]} Qxd7 {[%emt 0:00:11]} 13. bxa5 {[%emt 0:00:04]} Bxa5 {[%emt 0:00:03]} 14. Rc1 {[%emt 0:00:13]} O-O {[%emt 0:00:30]} 15. O-O {[%emt 0:00:05]} Qe7 {[%emt 0:00:28]} 16. a4 {[%emt 0:00:04]} Nd8 {[%emt 0:00:45]} 17. Ne2 {[%emt 0:00:06]} c6 {[%emt 0:00:02]} 18. Bd3 {[%emt 0:00:10]} Bc7 {[%emt 0:00:35]} 19. Bc2 {[%emt 0:00:19]} Bxf4 {[%emt 0:00:13]} 20. Nxf4 {[%emt 0:00:03]} Ne6 {[%emt 0:00:11]} 21. Nxe6 {[%emt 0:00:14]} fxe6 {[%emt 0:00:07]} 22. Rb1 {[%emt 0:00:03]} h6 {[%emt 0:00:41]} 23. Qd3 {[%emt 0:00:09]} Qf7 {[%emt 0:01:18]} 24. Qb3 {[%emt 0:00:14]} Rab8 {[%emt 0:00:19]} 25. Qd3 {[%emt 0:00:55]} g6 {[%emt 0:01:20]} 26. Qxg6+ {[%emt 0:00:23]} Qxg6 {[%emt 0:00:03]} 27. Bxg6 {[%emt 0:00:02]} Ne4 {[%emt 0:00:24]} 28. Bxe4 {[%emt 0:00:03]} dxe4 {[%emt 0:00:03]} 29. Rfc1 {[%emt 0:00:04]} b5 {[%emt 0:00:46]} 30. axb5 {[%emt 0:00:29]} cxb5 {[%emt 0:00:02]} 31. Rb2 {[%emt 0:00:01]} b4 {[%emt 0:00:28]} 32. Rcb1 {[%emt 0:00:02]} Rb7 {[%emt 0:00:36]} 33. Rxb4 {[%emt 0:00:02]} Rc7 {[%emt 0:00:02]} 34. Rb6 {[%emt 0:00:22]} Rfc8 {[%emt 0:00:04]} 35. h3 {[%emt 0:00:05]} Rc1+ {[%emt 0:00:12]} 36. Rxc1 {[%emt 0:00:02]} Rxc1+ {[%emt 0:00:01]} 37. Kh2 {[%emt 0:00:02]} Kf7 {[%emt 0:00:16]} 38. Rb5 {[%emt 0:00:00]} Kg6 {[%emt 0:00:10]} 39. Kg3 {[%emt 0:00:04]} Rc8 {[%emt 0:00:15]} 40. Re5 {[%emt 0:00:08]} Kf6 {[%emt 0:00:09]} 41. Rxe4 {[%emt 0:00:07]} Rg8+ {[%emt 0:00:15]} 42. Rg4 {[%emt 0:00:01]} Rf8 {[%emt 0:00:09]} 43. Rf4+ {[%emt 0:00:01]} Kg7 {[%emt 0:00:05]} 44. Rxf8 {[%emt 0:00:02]} Kxf8 {[%emt 0:00:03]} 45. Kg4 {[%emt 0:00:00]} h5+ {[%emt 0:00:21]} 46. Kxh5 {[%emt 0:00:02]} e5 {[%emt 0:00:02]} 47. dxe5 {[%emt 0:00:02]} Ke7 {[%emt 0:00:03]} 48. f4 {[%emt 0:00:06]} Ke6 {[%emt 0:00:01]} 49. Kg4 {[%emt 0:00:02]} Kf7 {[%emt 0:00:02]} 50. f5 {[%emt 0:00:01]} Ke7 {[%emt 0:00:03]} 51. Kf4 {[%emt 0:00:01]} Kf7 {[%emt 0:00:06]} 52. g4 {[%emt 0:00:05]} 1-0

[Event "ONJK-FGH 2019"]
[Site "Borne"]
[Date "2019.08.06"]
[Round "5.4"]
[White "Rooijakkers, Liam"]
[Black "Gang, Kevin"]
[Result "1-0"]
[ECO "C25"]
[WhiteElo "680"]
[BlackElo "827"]
[Annotator "NA"]
[PlyCount "69"]
[EventDate "2019.08.05"]
[EventType "swiss"]
[EventCountry "NED"]
[SourceTitle "playchess.com"]
[Source "ChessBase"]
[SourceQuality "1"]
[TimeControl "1500+10"]

1. e4 {[%emt 0:00:00]} e5 {[%emt 0:00:00]} 2. Nc3 {[%emt 0:00:00]} Nc6 {[%emt 0:00:00]} 3. f4 {[%emt 0:00:00]} Bb4 {[%emt 0:00:48]} 4. Nf3 {[%emt 0:00:24]} Nd4 {[%emt 0:01:13]} 5. Nxe5 {[%emt 0:00:18]} d6 {[%emt 0:00:48]} 6. Nf3 {[%emt 0:00:14]} Bg4 {[%emt 0:00:24]} 7. Be2 {[%emt 0:00:14]} Bxf3 {[%emt 0:01:00]} 8. Bxf3 {[%emt 0:00:12]} Qh4+ {[%emt 0:00:35]} 9. g3 {[%emt 0:00:22]} Qe7 {[%emt 0:00:40]} 10. a3 {[%emt 0:00:20]} Bxc3 {[%emt 0:00:27]} 11. bxc3 {[%emt 0:00:12]} Nc6 {[%emt 0:00:22]} 12. O-O {[%emt 0:00:12]} Nf6 {[%emt 0:00:32]} 13. d3 {[%emt 0:00:13]} O-O {[%emt 0:00:14]} 14. Re1 {[%emt 0:00:28]} Rfe8 {[%emt 0:00:14]} 15. d4 {[%emt 0:00:29]} d5 {[%emt 0:01:04]} 16. e5 {[%emt 0:00:25]} Nd7 {[%emt 0:00:15]} 17. Bxd5 {[%emt 0:00:03]} Nf6 {[%emt 0:00:46]} 18. Bc4 {[%emt 0:00:20]} g6 {[%emt 0:00:35]} 19. Bd2 {[%emt 0:00:04]} Nd7 {[%emt 0:00:11]} 20. e6 {[%emt 0:00:22]} fxe6 {[%emt 0:00:43]} 21. Rxe6 {[%emt 0:00:03]} Qxe6 {[%emt 0:00:03]} 22. Bxe6+ {[%emt 0:00:02]} Rxe6 {[%emt 0:00:01]} 23. Qg4 {[%emt 0:00:20]} Rae8 {[%emt 0:00:09]} 24. d5 {[%emt 0:00:06]} Nf6 {[%emt 0:00:22]} 25. Qf3 {[%emt 0:00:17]} Rd6 {[%emt 0:01:05]} 26. dxc6 {[%emt 0:00:24]} Rxd2 {[%emt 0:00:02]} 27. cxb7 {[%emt 0:00:04]} Rb8 {[%emt 0:00:17]} 28. Qc6 {[%emt 0:00:21]} Nd5 {[%emt 0:00:17]} 29. c4 {[%emt 0:00:18]} Rxc2 {[%emt 0:00:43]} 30. Qxd5+ {[%emt 0:00:07]} Kg7 {[%emt 0:00:00]} 31. Qd7+ {[%emt 0:00:06]} Kf6 {[%emt 0:00:08]} 32. Qxc7 {[%emt 0:00:02]} Rxb7 {[%emt 0:00:09]} 33. Qc6+ {[%emt 0:00:08]} Kf5 {[%emt 0:00:07]} 34. Qxb7 {[%emt 0:00:03]} Rxc4 {[%emt 0:00:03]} 35. Qb5+ {[%emt 0:00:01]} 1-0

[Event "ONJK-FGH 2019"]
[Site "Borne"]
[Date "2019.08.06"]
[Round "5.5"]
[White "Rudolph, Simon"]
[Black "Leenen, Boyd"]
[Result "1-0"]
[ECO "A22"]
[WhiteElo "464"]
[BlackElo "618"]
[Annotator "NA"]
[PlyCount "57"]
[EventDate "2019.08.05"]
[EventType "swiss"]
[EventCountry "NED"]
[SourceTitle "playchess.com"]
[Source "ChessBase"]
[SourceQuality "1"]
[TimeControl "1500+10"]

1. c4 {[%emt 0:00:00]} e5 {[%emt 0:00:00]} 2. Nc3 {[%emt 0:00:00]} Nf6 {[%emt 0:00:00]} 3. d3 {[%emt 0:00:00]} d6 {[%emt 0:00:00]} 4. e3 {[%emt 0:00:00]} Nc6 {[%emt 0:00:00]} 5. Be2 {[%emt 0:00:02]} Bf5 {[%emt 0:00:00]} 6. Nf3 {[%emt 0:00:02]} Bg4 {[%emt 0:00:00]} 7. O-O {[%emt 0:00:04]} Bxf3 {[%emt 0:00:00]} 8. Bxf3 {[%emt 0:00:04]} Be7 {[%emt 0:00:01]} 9. Qa4 {[%emt 0:00:09]} Qd7 {[%emt 0:00:02]} 10. h3 {[%emt 0:00:11]} O-O-O {[%emt 0:00:02]} 11. Bg4 {[%emt 0:00:05]} Nxg4 {[%emt 0:00:02]} 12. hxg4 {[%emt 0:00:03]} Qxg4 {[%emt 0:00:02]} 13. Nd5 {[%emt 0:00:07]} Bh4 {[%emt 0:00:04]} 14. Nf4 {[%emt 0:00:12]} exf4 {[%emt 0:00:02]} 15. exf4 {[%emt 0:00:02]} Qf5 {[%emt 0:00:05]} 16. d4 {[%emt 0:00:10]} Nxd4 {[%emt 0:00:03]} 17. Be3 {[%emt 0:00:02]} Nc6 {[%emt 0:00:03]} 18. Rad1 {[%emt 0:00:06]} Rde8 {[%emt 0:00:08]} 19. g3 {[%emt 0:00:12]} Bf6 {[%emt 0:00:03]} 20. Bxa7 {[%emt 0:00:16]} b5 {[%emt 0:00:14]} 21. Qa6+ {[%emt 0:00:02]} Kd7 {[%emt 0:00:02]} 22. cxb5 {[%emt 0:00:04]} Nxa7 {[%emt 0:00:01]} 23. Qxa7 {[%emt 0:00:02]} Ra8 {[%emt 0:00:13]} 24. Qb7 {[%emt 0:00:04]} Rhb8 {[%emt 0:00:03]} 25. Qc6+ {[%emt 0:00:02]} Kd8 {[%emt 0:00:01]} 26. Rde1 {[%emt 0:00:04]} Be7 {[%emt 0:00:15]} 27. Re2 {[%emt 0:00:03]} Qd3 {[%emt 0:00:06]} 28. Rfe1 {[%emt 0:00:02]} Bf6 {[%emt 0:00:33]} 29. Re8# {[%emt 0:00:14]} 1-0

[Event "ONJK-FGH 2019"]
[Site "Borne"]
[Date "2019.08.06"]
[Round "5.6"]
[White "Thijssen, Freek"]
[Black "Zhang, Yourui Eric"]
[Result "1-0"]
[ECO "C53"]
[WhiteElo "702"]
[BlackElo "447"]
[Annotator "NA"]
[PlyCount "43"]
[EventDate "2019.08.05"]
[EventType "swiss"]
[EventCountry "NED"]
[SourceTitle "playchess.com"]
[Source "ChessBase"]
[SourceQuality "1"]
[TimeControl "1500+10"]

1. e4 {[%emt 0:00:00]} e5 {[%emt 0:00:00]} 2. Nf3 {[%emt 0:00:00]} Nc6 {[%emt 0:00:00]} 3. Bc4 {[%emt 0:00:00]} Bc5 {[%emt 0:00:11]} 4. c3 {[%emt 0:00:05]} f6 {[%emt 0:00:26]} 5. d4 {[%emt 0:00:05]} exd4 {[%emt 0:00:05]} 6. cxd4 {[%emt 0:00:01]} Nxd4 {[%emt 0:00:04]} 7. Nxd4 {[%emt 0:00:02]} Qe7 {[%emt 0:00:18]} 8. Nc3 {[%emt 0:00:03]} c6 {[%emt 0:00:18]} 9. O-O {[%emt 0:00:12]} d5 {[%emt 0:00:09]} 10. exd5 {[%emt 0:00:01]} Bd6 {[%emt 0:00:20]} 11. Re1 {[%emt 0:00:12]} Be5 {[%emt 0:00:04]} 12. f4 {[%emt 0:00:07]} cxd5 {[%emt 0:00:05]} 13. Bxd5 {[%emt 0:00:03]} Be6 {[%emt 0:00:05]} 14. Bxe6 Qxe6 {[%emt 0:00:03]} 15. Nxe6 {[%emt 0:00:06]} Ke7 {[%emt 0:00:09]} 16. fxe5 {[%emt 0:00:16]} Kxe6 {[%emt 0:00:06]} 17. Qd6+ {[%emt 0:00:03]} Kf7 {[%emt 0:00:05]} 18. Ne4 {[%emt 0:00:02]} Re8 {[%emt 0:00:17]} 19. e6+ {[%emt 0:00:16]} Rxe6 {[%emt 0:00:35]} 20. Ng5+ {[%emt 0:00:00]} fxg5 {[%emt 0:00:03]} 21. Qxe6+ {[%emt 0:00:09]} Kf8 {[%emt 0:00:12]} 22. Rf1+ {[%emt 0:00:00]} 1-0

[Event "ONJK-FGH 2019"]
[Site "Borne"]
[Date "2019.08.06"]
[Round "6.1"]
[White "Allaart, Jibbe"]
[Black "Vijver, Jonathan"]
[Result "0-1"]
[ECO "C55"]
[WhiteElo "466"]
[BlackElo "999"]
[Annotator "NA"]
[PlyCount "36"]
[EventDate "2019.08.05"]
[EventType "swiss"]
[EventCountry "NED"]
[SourceTitle "playchess.com"]
[Source "ChessBase"]
[SourceQuality "1"]
[TimeControl "1500+10"]

1. e4 {[%emt 0:00:00]} e5 {[%emt 0:00:00]} 2. Nf3 {[%emt 0:00:00]} Nc6 {[%emt 0:00:00]} 3. Nc3 {[%emt 0:00:00]} Nf6 {[%emt 0:00:03]} 4. Bc4 {[%emt 0:00:00]} Nxe4 {[%emt 0:00:06]} 5. Nxe4 {[%emt 0:00:05]} d5 {[%emt 0:00:07]} 6. Bxd5 {[%emt 0:00:13]} Qxd5 {[%emt 0:00:06]} 7. Nc3 {[%emt 0:00:03]} Qd8 {[%emt 0:00:11]} 8. O-O {[%emt 0:00:10]} Be7 {[%emt 0:00:09]} 9. d3 {[%emt 0:00:12]} Bg4 {[%emt 0:00:06]} 10. h3 {[%emt 0:00:06]} Bh5 {[%emt 0:00:05]} 11. g4 {[%emt 0:00:02]} Bg6 {[%emt 0:00:08]} 12. Be3 {[%emt 0:00:24]} h5 {[%emt 0:00:09]} 13. Nb5 {[%emt 0:00:30]} hxg4 {[%emt 0:00:44]} 14. hxg4 {[%emt 0:00:03]} a6 {[%emt 0:00:32]} 15. Nc3 {[%emt 0:00:07]} Qd7 {[%emt 0:00:23]} 16. Nd2 {[%emt 0:00:13]} Nb4 {[%emt 0:00:21]} 17. Nc4 {[%emt 0:00:37]} Qc6 {[%emt 0:01:16]} 18. Nxe5 {[%emt 0:00:00]} Qh1# {[%emt 0:00:07]} 0-1

[Event "ONJK-FGH 2019"]
[Site "Borne"]
[Date "2019.08.06"]
[Round "6.2"]
[White "Kurt, Sascha"]
[Black "Breider, Jayden"]
[Result "1-0"]
[ECO "C21"]
[WhiteElo "984"]
[BlackElo "347"]
[Annotator "NA"]
[PlyCount "145"]
[EventDate "2019.08.05"]
[EventType "swiss"]
[EventCountry "NED"]
[SourceTitle "playchess.com"]
[Source "ChessBase"]
[SourceQuality "1"]
[TimeControl "1500+10"]

1. e4 {[%emt 0:02:45]} e5 {[%emt 0:00:00]} 2. d4 {[%emt 0:00:00]} exd4 {[%emt 0:00:00]} 3. Nf3 {[%emt 0:00:00]} c5 {[%emt 0:00:03]} 4. c3 {[%emt 0:00:00]} Nf6 {[%emt 0:00:11]} 5. cxd4 {[%emt 0:00:00]} cxd4 {[%emt 0:00:02]} 6. e5 {[%emt 0:00:00]} Qe7 {[%emt 0:00:06]} 7. Be2 {[%emt 0:00:00]} Nd5 {[%emt 0:00:56]} 8. Qxd4 {[%emt 0:00:00]} Qc5 {[%emt 0:00:28]} 9. Qxc5 {[%emt 0:00:20]} Bxc5 {[%emt 0:00:02]} 10. O-O {[%emt 0:00:28]} O-O {[%emt 0:00:14]} 11. Rd1 {[%emt 0:00:32]} Nb6 {[%emt 0:00:34]} 12. Nc3 {[%emt 0:00:40]} Re8 {[%emt 0:00:44]} 13. Bf4 {[%emt 0:00:21]} Nc6 {[%emt 0:00:20]} 14. Rac1 {[%emt 0:00:26]} Bb4 {[%emt 0:01:13]} 15. Nb5 {[%emt 0:00:39]} Re7 {[%emt 0:00:08]} 16. a3 {[%emt 0:00:46]} a6 {[%emt 0:00:38]} 17. Nc7 {[%emt 0:01:01]} Rb8 18. axb4 {[%emt 0:00:00]} Nxb4 {[%emt 0:00:58]} 19. e6 {[%emt 0:00:15]} fxe6 {[%emt 0:00:47]} 20. Nxa6 {[%emt 0:01:50]} Nxa6 {[%emt 0:00:18]} 21. Bxa6 {[%emt 0:00:10]} bxa6 {[%emt 0:00:03]} 22. Bxb8 {[%emt 0:00:14]} Na4 {[%emt 0:00:32]} 23. Rxc8+ {[%emt 0:00:03]} Kf7 {[%emt 0:00:06]} 24. Ng5+ {[%emt 0:00:21]} Kg6 {[%emt 0:00:04]} 25. h4 {[%emt 0:00:17]} h6 {[%emt 0:00:06]} 26. Nf3 {[%emt 0:00:03]} Nxb2 {[%emt 0:00:07]} 27. Rd2 {[%emt 0:00:14]} Na4 {[%emt 0:00:07]} 28. Bd6 {[%emt 0:00:02]} Rf7 {[%emt 0:00:11]} 29. Ne5+ {[%emt 0:00:02]} Kf6 {[%emt 0:00:18]} 30. Nxf7 {[%emt 0:00:10]} Kxf7 {[%emt 0:00:01]} 31. Rf8+ {[%emt 0:00:02]} Kg6 {[%emt 0:00:02]} 32. g4 {[%emt 0:00:07]} h5 {[%emt 0:00:04]} 33. gxh5+ {[%emt 0:00:00]} Kxh5 {[%emt 0:00:03]} 34. Rh8+ {[%emt 0:00:01]} Kg6 {[%emt 0:00:07]} 35. h5+ {[%emt 0:00:02]} Kg5 {[%emt 0:00:03]} 36. Be7+ {[%emt 0:00:03]} Kf5 {[%emt 0:00:03]} 37. h6 {[%emt 0:00:02]} gxh6 {[%emt 0:00:07]} 38. Rxh6 {[%emt 0:00:01]} d5 {[%emt 0:00:04]} 39. Rh5+ {[%emt 0:00:04]} Kg6 {[%emt 0:00:02]} 40. Rh4 {[%emt 0:00:02]} Nb6 {[%emt 0:00:05]} 41. Bc5 {[%emt 0:00:07]} Nc4 {[%emt 0:00:04]} 42. Rxc4 {[%emt 0:00:12]} dxc4 {[%emt 0:00:03]} 43. Rc2 {[%emt 0:00:01]} Kf5 {[%emt 0:00:05]} 44. Rxc4 {[%emt 0:00:00]} Ke5 {[%emt 0:00:02]} 45. Ra4 {[%emt 0:00:01]} Kd5 {[%emt 0:00:02]} 46. Be3 {[%emt 0:00:03]} e5 {[%emt 0:00:02]} 47. Rxa6 {[%emt 0:00:02]} Ke4 {[%emt 0:00:02]} 48. Ra4+ {[%emt 0:00:06]} Kf5 {[%emt 0:00:30]} 49. Kg2 {[%emt 0:00:13]} Ke6 {[%emt 0:00:05]} 50. f4 {[%emt 0:00:05]} exf4 {[%emt 0:00:03]} 51. Rxf4 {[%emt 0:00:04]} Kd5 {[%emt 0:00:05]} 52. Bg1 {[%emt 0:00:02]} Ke5 {[%emt 0:00:13]} 53. Ra4 {[%emt 0:00:01]} Kd5 {[%emt 0:00:02]} 54. Kf3 {[%emt 0:00:02]} Ke5 {[%emt 0:00:01]} 55. Rb4 {[%emt 0:00:03]} Kd5 {[%emt 0:00:02]} 56. Ke3 {[%emt 0:00:01]} Kc5 {[%emt 0:00:02]} 57. Rh4 {[%emt 0:00:02]} Kb5 {[%emt 0:00:02]} 58. Kd3 {[%emt 0:00:01]} Ka5 {[%emt 0:00:08]} 59. Kc3 {[%emt 0:00:08]} Kb5 {[%emt 0:00:00]} 60. Rg4 {[%emt 0:00:09]} Ka5 {[%emt 0:00:00]} 61. Kb3 {[%emt 0:00:00]} Kb5 {[%emt 0:00:00]} 62. Rg5+ {[%emt 0:00:00]} Kc6 {[%emt 0:00:00]} 63. Kb4 {[%emt 0:00:00]} Kd6 {[%emt 0:00:00]} 64. Kc4 {[%emt 0:00:00]} Ke6 {[%emt 0:00:00]} 65. Kd4 {[%emt 0:00:00]} Kf6 {[%emt 0:00:00]} 66. Ra5 {[%emt 0:00:00]} Ke7 {[%emt 0:00:00]} 67. Kd5 {[%emt 0:00:00]} Kd7 {[%emt 0:00:00]} 68. Ra7+ {[%emt 0:00:00]} Ke8 {[%emt 0:00:00]} 69. Kd6 {[%emt 0:00:00]} Kf8 {[%emt 0:00:00]} 70. Ke6 {[%emt 0:00:00]} Kg8 71. Kf6 {[%emt 0:00:04]} Kh8 {[%emt 0:00:08]} 72. Kg6 {[%emt 0:00:05]} Kg8 73. Ra8# {[%emt 0:00:10]} 1-0

[Event "ONJK-FGH 2019"]
[Site "Borne"]
[Date "2019.08.06"]
[Round "6.3"]
[White "Talen Alarcón, Milton"]
[Black "Terlouw, Wouter"]
[Result "0-1"]
[ECO "D06"]
[WhiteElo "619"]
[BlackElo "1159"]
[Annotator "NA"]
[PlyCount "54"]
[EventDate "2019.08.05"]
[EventType "swiss"]
[EventCountry "NED"]
[SourceTitle "playchess.com"]
[Source "ChessBase"]
[SourceQuality "1"]
[TimeControl "1500+10"]

1. d4 {[%emt 0:00:00]} d5 {[%emt 0:00:00]} 2. c4 {[%emt 0:00:00]} c6 {[%emt 0:00:00]} 3. Nc3 {[%emt 0:00:00]} Nf6 {[%emt 0:00:00]} 4. Nf3 {[%emt 0:00:04]} Bf5 {[%emt 0:00:00]} 5. Bg5 {[%emt 0:00:11]} e6 {[%emt 0:00:00]} 6. Bxf6 {[%emt 0:00:02]} Qxf6 {[%emt 0:00:01]} 7. cxd5 {[%emt 0:00:05]} cxd5 {[%emt 0:00:01]} 8. Qa4+ {[%emt 0:00:06]} Nd7 {[%emt 0:00:15]} 9. Nb5 {[%emt 0:00:06]} Qd8 {[%emt 0:00:11]} 10. Nc3 {[%emt 0:00:09]} Bd6 {[%emt 0:00:09]} 11. Nb5 {[%emt 0:00:08]} Be7 {[%emt 0:00:20]} 12. Nxa7 {[%emt 0:00:17]} Qb6 {[%emt 0:00:16]} 13. Qc2 {[%emt 0:00:27]} Qxa7 {[%emt 0:00:09]} 14. Rc1 {[%emt 0:00:02]} O-O {[%emt 0:00:03]} 15. a3 {[%emt 0:00:11]} Qa5+ {[%emt 0:00:13]} 16. Nd2 {[%emt 0:00:04]} Bxc2 {[%emt 0:00:03]} 17. Rxc2 {[%emt 0:00:02]} Rac8 {[%emt 0:00:03]} 18. Rxc8 {[%emt 0:00:03]} Rxc8 {[%emt 0:00:02]} 19. f3 {[%emt 0:00:02]} Bh4+ {[%emt 0:00:05]} 20. g3 {[%emt 0:00:01]} Bg5 {[%emt 0:00:03]} 21. f4 {[%emt 0:00:02]} Rc1+ {[%emt 0:00:02]} 22. Kf2 {[%emt 0:00:03]} Qxd2 {[%emt 0:00:02]} 23. fxg5 {[%emt 0:00:01]} Qxg5 {[%emt 0:00:01]} 24. h4 {[%emt 0:00:07]} Qf5+ {[%emt 0:00:02]} 25. Kg2 {[%emt 0:00:01]} Qe4+ {[%emt 0:00:05]} 26. Kg1 {[%emt 0:00:00]} Qxe2 {[%emt 0:00:00]} 27. Rh3 {[%emt 0:00:00]} Rxf1# {[%emt 0:00:00]} 0-1

[Event "ONJK-FGH 2019"]
[Site "Borne"]
[Date "2019.08.06"]
[Round "6.4"]
[White "Geldof, Max"]
[Black "Rooijakkers, Liam"]
[Result "1-0"]
[ECO "B07"]
[WhiteElo "749"]
[BlackElo "680"]
[Annotator "NA"]
[PlyCount "73"]
[EventDate "2019.08.05"]
[EventType "swiss"]
[EventCountry "NED"]
[SourceTitle "playchess.com"]
[Source "ChessBase"]
[SourceQuality "1"]
[TimeControl "1500+10"]

1. e4 {[%emt 0:00:00]} d6 {[%emt 0:00:00]} 2. d4 {[%emt 0:00:00]} Nf6 {[%emt 0:00:00]} 3. Nc3 {[%emt 0:00:00]} Nbd7 {[%emt 0:00:00]} 4. Nf3 {[%emt 0:00:00]} c6 {[%emt 0:00:01]} 5. Bf4 {[%emt 0:00:00]} h6 {[%emt 0:00:19]} 6. e5 {[%emt 0:00:03]} Nd5 {[%emt 0:00:14]} 7. exd6 {[%emt 0:00:12]} exd6 {[%emt 0:00:13]} 8. Bc4 {[%emt 0:00:16]} Qe7+ {[%emt 0:00:09]} 9. Be3 {[%emt 0:00:12]} Nf4 {[%emt 0:00:07]} 10. O-O {[%emt 0:00:19]} Ng6 {[%emt 0:00:12]} 11. d5 {[%emt 0:00:11]} c5 {[%emt 0:00:20]} 12. Re1 {[%emt 0:00:02]} Nge5 {[%emt 0:00:06]} 13. Nxe5 {[%emt 0:00:15]} Nxe5 {[%emt 0:00:03]} 14. Bb5+ {[%emt 0:00:12]} Bd7 15. Bxd7+ Qxd7 {[%emt 0:00:30]} 16. Bxc5 {[%emt 0:00:20]} dxc5 {[%emt 0:00:17]} 17. Rxe5+ {[%emt 0:00:02]} Be7 {[%emt 0:00:04]} 18. d6 {[%emt 0:00:13]} Qd8 {[%emt 0:00:43]} 19. Rxe7+ {[%emt 0:00:00]} Kf8 {[%emt 0:00:02]} 20. Qf3 {[%emt 0:00:08]} f6 {[%emt 0:00:10]} 21. Qd5 {[%emt 0:00:09]} Qxe7 {[%emt 0:00:36]} 22. dxe7+ {[%emt 0:00:04]} Kxe7 {[%emt 0:00:02]} 23. Qxc5+ {[%emt 0:00:03]} Kf7 {[%emt 0:00:01]} 24. Qd5+ {[%emt 0:00:03]} Kf8 {[%emt 0:00:03]} 25. h3 {[%emt 0:00:04]} Ke7 {[%emt 0:00:03]} 26. Re1+ {[%emt 0:00:02]} Kf8 {[%emt 0:00:04]} 27. Qd6+ {[%emt 0:00:08]} Kg8 {[%emt 0:00:02]} 28. Qd7 {[%emt 0:00:18]} Kh7 {[%emt 0:00:09]} 29. Re7 {[%emt 0:00:03]} Rhg8 {[%emt 0:00:03]} 30. Qf5+ {[%emt 0:00:05]} Kh8 {[%emt 0:00:03]} 31. Ne4 {[%emt 0:00:24]} Raf8 {[%emt 0:00:19]} 32. Rxb7 {[%emt 0:00:22]} g6 {[%emt 0:00:05]} 33. Nxf6 {[%emt 0:00:20]} Rg7 {[%emt 0:00:06]} 34. Rxg7 Kxg7 35. Ne8+ {[%emt 0:00:45]} Kg8 {[%emt 0:00:26]} 36. Qxg6+ {[%emt 0:00:04]} Kh8 {[%emt 0:00:10]} 37. Qg7# {[%emt 0:00:14]} 1-0

[Event "ONJK-FGH 2019"]
[Site "Borne"]
[Date "2019.08.06"]
[Round "6.5"]
[White "Zoet, Wiebe"]
[Black "Rudolph, Simon"]
[Result "0-1"]
[ECO "B03"]
[WhiteElo "426"]
[BlackElo "464"]
[Annotator "NA"]
[PlyCount "37"]
[EventDate "2019.08.05"]
[EventType "swiss"]
[EventCountry "NED"]
[SourceTitle "playchess.com"]
[Source "ChessBase"]
[SourceQuality "1"]
[TimeControl "1500+10"]

1. e4 {[%emt 0:00:00]} Nf6 {[%emt 0:00:00]} 2. e5 {[%emt 0:00:00]} Nd5 {[%emt 0:00:00]} 3. c4 {[%emt 0:00:00]} Nb6 {[%emt 0:00:00]} 4. d4 {[%emt 0:00:00]} d6 {[%emt 0:00:00]} 5. f4 {[%emt 0:00:01]} e6 {[%emt 0:00:00]} 6. Nf3 {[%emt 0:00:03]} dxe5 {[%emt 0:00:02]} 7. fxe5 {[%emt 0:00:01]} Nc6 {[%emt 0:00:10]} 8. d5 {[%emt 0:00:05]} Nb8 {[%emt 0:00:02]} 9. Nc3 {[%emt 0:00:06]} Bb4 {[%emt 0:00:03]} 10. Bd2 {[%emt 0:00:15]} exd5 {[%emt 0:00:06]} 11. cxd5 {[%emt 0:00:04]} Nxd5 {[%emt 0:00:03]} 12. Nxd5 {[%emt 0:00:03]} Bxd2+ {[%emt 0:00:04]} 13. Qxd2 {[%emt 0:00:02]} c6 {[%emt 0:00:05]} 14. Nf4 {[%emt 0:00:12]} Qxd2+ {[%emt 0:00:03]} 15. Nxd2 {[%emt 0:00:00]} O-O {[%emt 0:00:06]} 16. Be2 {[%emt 0:00:06]} Rd8 {[%emt 0:00:08]} 17. Rd1 {[%emt 0:00:06]} Be6 {[%emt 0:00:07]} 18. Nxe6 {[%emt 0:00:06]} fxe6 {[%emt 0:00:02]} 19. O-O {[%emt 0:00:14]} 0-1

[Event "ONJK-FGH 2019"]
[Site "Borne"]
[Date "2019.08.06"]
[Round "6.6"]
[White "Van Es, Bjarne"]
[Black "Thijssen, Freek"]
[Result "0-1"]
[ECO "C48"]
[WhiteElo "100"]
[BlackElo "702"]
[Annotator "NA"]
[PlyCount "30"]
[EventDate "2019.08.05"]
[EventType "swiss"]
[EventCountry "NED"]
[SourceTitle "playchess.com"]
[Source "ChessBase"]
[SourceQuality "1"]
[TimeControl "1500+10"]

1. e4 {[%emt 0:00:00]} e5 {[%emt 0:00:03]} 2. Nc3 {[%emt 0:00:00]} Nf6 {[%emt 0:00:00]} 3. Nf3 {[%emt 0:00:00]} Nc6 {[%emt 0:00:00]} 4. Bb5 {[%emt 0:00:02]} Bc5 {[%emt 0:00:00]} 5. Bxc6 {[%emt 0:00:04]} dxc6 {[%emt 0:00:00]} 6. Nxe5 {[%emt 0:00:04]} Nd7 {[%emt 0:00:10]} 7. Qh5 {[%emt 0:00:08]} g6 {[%emt 0:00:08]} 8. Qf3 {[%emt 0:00:06]} Nxe5 {[%emt 0:00:04]} 9. Qf4 {[%emt 0:00:15]} Bd6 {[%emt 0:00:11]} 10. O-O {[%emt 0:00:04]} Bg4 {[%emt 0:00:09]} 11. h3 {[%emt 0:00:02]} Nf3+ {[%emt 0:00:04]} 12. Qxf3 {[%emt 0:00:22]} Bxf3 {[%emt 0:00:01]} 13. gxf3 {[%emt 0:00:04]} Qg5+ {[%emt 0:00:02]} 14. Kh1 {[%emt 0:00:13]} Qh4 {[%emt 0:00:02]} 15. Rg1 {[%emt 0:00:17]} Qxh3# {[%emt 0:00:14]} 0-1